Cogmind - Beta 14 @@@ ROGUE MODE // 2024.09.02 @ 15:32:18 Player: KLAWKRUSHA Result: Destroyed by G-47 Trooper with Particle Gun Performance ------------- Evolutions (1) 500 Regions Visited (3) 600 Robots Destroyed (25) 125 Value Destroyed (462) 462 Prototype IDs (3) 60 Alien Tech Used (0) 0 Bonus (0) 0 TOTAL SCORE: 1747 Bonus ------- None Cogmind --------- Core Integrity 0/400 Matter 382/400 Energy 100/100 System Corruption 0% Temperature Cool (9) Movement Core (400) Ox7 Location -9/Materials Parts ------- > --- POWER (1) -------- (None) > --- PROPULSION (2) --- (None) > --- UTILITY (3) ------ Large Storage Unit Medium Matter Pod > --- WEAPON (3) ------- (None) > --- INVENTORY (15) --- Light Ion Engine Aluminum Leg Aluminum Leg Datajack Peak State ------------ > --- POWER ------------ Ion Engine > --- PROPULSION ------- Light Treads Light Treads > --- UTILITY ---------- Small Storage Unit Large Storage Unit > --- WEAPON ----------- Assault Rifle Assault Rifle > --- INVENTORY -------- Assault Rifle [Rating: 7] Favorites ----------- Power Ion Engine Engine Ion Engine Propulsion Light Treads Treads Light Treads Leg Aluminum Leg Wheel Wheel Utility Large Storage Unit Storage Large Storage Unit Processor Signal Interpreter Weapon Assault Rifle Energy Gun Small Laser Ballistic Gun Assault Rifle Special Weapon Mining Laser Special Melee Weapon Datajack Build | -11 -10 -10 -9 ------- Run | Yrd Mat Min Mat Slots Evolved 2 | . . . 2 Power . | . . . . Propulsion . | . . . . Utility 1 | . . . 1 Weapon 1 | . . . 1 Parts Attached 27 | 6 6 14 1 Power 5 | 1 2 2 . Engine 5 | 1 2 2 . Core . | . . . . Reactor . | . . . . Propulsion 9 | 2 . 7 . Treads 2 | 2 . . . Leg 5 | . . 5 . Wheel 2 | . . 2 . Hover . | . . . . Flight . | . . . . Utility 5 | 1 3 . 1 Device . | . . . . Storage 4 | 1 2 . 1 Processor 1 | . 1 . . Hackware . | . . . . Protection . | . . . . Artifact . | . . . . Weapon 8 | 2 1 5 . Energy Gun 2 | . . 2 . Energy Cannon . | . . . . Ballistic Gun 4 | 2 . 2 . Ballistic Cannon . | . . . . Launcher . | . . . . Special Weapon 1 | . . 1 . Impact Weapon . | . . . . Slashing Weapon . | . . . . Piercing Weapon . | . . . . Special Melee Weapon 1 | . 1 . . Unidentified Prototypes . | . . . . Parts Lost 13 | . 3 5 5 Power 3 | . 2 . 1 Propulsion 4 | . . 2 2 Utility . | . . . . Weapon 6 | . 1 3 2 Highest Loss Streak 5 | . 2 4 5 To Critical Strikes . | . . . . Average Slot Usage (%) 86 | . 84 93 68 Engine 13 | . 13 14 9 Treads 18 | . 28 11 . Leg 7 | . . 14 19 Storage 14 | . 14 14 14 Processor 7 | . 3 14 5 Energy Gun 4 | . . 7 19 Ballistic Gun 11 | . 15 10 . Special Weapon 2 | . . 5 . Special Melee Weapon 4 | . 9 . . Peak Build Rating 7 | 6 7 7 7 Average Rating 6 | 4 5 6 6 On Entrance 4 | . 6 6 7 Naked Turns . | . . . . Heaviest Build 29 | 14 29 27 29 Greatest Support 40 | 40 40 40 20 Greatest Overweight (x) 8 | . . 8 1 Average Overweight (x) . | . . . 1 Largest Inventory Capacity 15 | 8 15 15 15 Average Capacity 14 | 6 14 15 15 Most Carried 7 | 5 4 7 5 Average Carried 2 | . 2 2 4 Final Capacity 15 | 8 15 15 15 Final Carried 4 | . 3 4 4 Class Distribution -------------------- 70% | Mutant 29% | Scavenger-Mutant Dominant Class ---------------- Mutant | -10/Materials Scavenger-Mutant | -10/Mines Scavenger-Mutant | -9/Materials Resources | -11 -10 -10 -9 ----------- Run | Yrd Mat Min Mat Matter Collected 828 | 170 160 460 38 Remotely . | . . . . Salvage Created 607 | . 211 313 83 Parts 51 | . 18 30 3 Haulers Intercepted . | . . . . Recyclers Shooed . | . . . . Parts Field Recycled . | . . . . Retrieved Matter . | . . . . Parts Self-Destructed . | . . . . Prevented . | . . . . Kills | -11 -10 -10 -9 ------- Run | Yrd Mat Min Mat Combat Hostiles Destroyed 22 | . 5 15 2 Guns 22 | . 5 15 2 Classes Destroyed 3 | . 3 . . Watcher 3 | . 3 . . Swarmer 15 | . 3 12 . Grunt 7 | . 2 3 2 Best Kill Streak 5 | . 4 5 2 Combat Bots Only 5 | . 3 5 2 Max Kills in Single Turn 1 | . 1 1 1 Gunslinging . | . . . . Exploded . | . . . . Melee . | . . . . Uniques/NPCs Destroyed . | . . . . Combat | -11 -10 -10 -9 -------- Run | Yrd Mat Min Mat Hostile Shots Fired 189 | . 43 81 65 Missed 39 | . 11 19 9 Damage Taken 1957 | . 423 801 733 Core 647 | . 71 174 402 Absorbed by Shields . | . . . . Core Remaining (%) 51 | 100 . 2 . Volleys Fired 113 | . 24 77 12 Largest 2 | . 2 2 2 Hottest 120 | . 40 120 80 Shots Fired 138 | . 33 84 21 Gun 134 | . 33 80 21 Cannon . | . . . . Launcher . | . . . . Special 4 | . . 4 . Kinetic 103 | . 33 70 . Thermal 35 | . . 14 21 Explosive . | . . . . Electromagnetic . | . . . . Robot Hit Streak 10 | . 5 8 10 Robot Miss Streak 4 | . 4 3 2 Penetration Max . | . . . . Secondary Targets . | . . . . Shots Hit Robots 61 | . 21 24 16 Core Hits 36 | . 11 19 6 Critical Kills 1 | . . 1 . Critical Parts Destroyed . | . . . . Critical Strikes 1 | . . 1 . Destroy 1 | . . 1 . Melee Attacks 12 | . 12 . . Impact . | . . . . Slashing . | . . . . Piercing . | . . . . Sneak Attacks 1 | . 1 . . Combat Hostiles . | . . . . Follow-up Attacks . | . . . . Damage Inflicted 771 | 9 233 339 190 Guns 728 | . 233 313 182 Cannons . | . . . . Explosions . | . . . . Melee . | . . . . Ramming 43 | 9 . 26 8 Kinetic 470 | . 233 237 . Thermal 258 | . . 76 182 Explosive . | . . . . Electromagnetic . | . . . . Impact . | . . . . Slashing . | . . . . Piercing . | . . . . Highest Corruption 10 | . 1 10 . Average Corruption 3 | . 1 4 . Corruption Purged . | . . . . Corruption Blocked . | . . . . Effects 21 | . . 21 . Message Errors 2 | . . 2 . Matter Fused 8 | . . 8 . Energy Discharges 5 | . . 5 . Parts Fused 1 | . . 1 . Data Loss (minor) 1 | . . 1 . Data Loss (major) 2 | . . 2 . Misfires 1 | . . 1 . Weapon Failures 1 | . . 1 . Overload Shots . | . . . . Overflow Damage . | . . . . Projectiles . | . . . . Explosions . | . . . . Melee . | . . . . Knockbacks . | . . . . Impact . | . . . . Kinetic . | . . . . Secondary . | . . . . Self-Inflicted Damage 26 | . . 26 . Shots . | . . . . Rammed 8 | 1 . 1 6 Targets Rammed 10 | 1 . 1 8 Kicked 2 | . . . 2 Crushed . | . . . . Highest Temperature 255 | . 8 60 255 Average Temperature 69 | . 3 21 125 Received Heat Transfer 741 | . 54 258 429 Siege Activations . | . . . . Robots Corrupted . | . . . . Combat Hostiles . | . . . . Parts Fried . | . . . . Impact Corruptions . | . . . . Robots Melted . | . . . . Combat Hostiles . | . . . . Parts Melted . | . . . . Heat Transferred 575 | . . 175 400 Parts Sabotaged . | . . . . Parts Stolen . | . . . . Parts Stripped . | . . . . Power Chain Reactions . | . . . . Alert | -11 -10 -10 -9 ------- Run | Yrd Mat Min Mat Peak Influence 214 | . 115 214 67 Initial 27 | . . . 27 Average 46 | . 31 72 29 Maximum Alert Level 1 | . . 1 . Low Security (%) 99 | 100 100 99 100 Level 1 . | . . . . Level 2 . | . . . . Level 3 . | . . . . Level 4 . | . . . . Level 5 . | . . . . High Security . | . . . . Max Security . | . . . . Squads Dispatched 2 | . 2 . . Investigation 2 | . 2 . . Extermination . | . . . . Reinforcement . | . . . . Assault . | . . . . Garrison . | . . . . Intercept . | . . . . Searches Triggered . | . . . . Construction Impeded . | . . . . Haulers Reinforced . | . . . . Active Scanning Responses . | . . . . Cargo Convoy Interrupts . | . . . . Stealth | -11 -10 -10 -9 --------- Run | Yrd Mat Min Mat Distress Signals 5 | . 4 1 . Communications Jammed . | . . . . Distress Signals . | . . . . Times Spotted 37 | . 15 18 4 Peak Tracking Total 5 | . 4 5 4 Tactical Retreats 3 | . 3 . . Traps | -11 -10 -10 -9 ------- Run | Yrd Mat Min Mat Traps Triggered 2 | . 2 . . Indirectly . | . . . . Trap Hack Attempts 15 | . 15 . . Triggered . | . . . . Disarmed 1 | . 1 . . Reprogrammed 1 | . 1 . . Reused . | . . . . Traps Extracted . | . . . . Installed . | . . . . Triggered . | . . . . Machines | -11 -10 -10 -9 ---------- Run | Yrd Mat Min Mat Machines Disabled . | . . . . Max in Single Turn . | . . . . Machines Repaired . | . . . . Machines Dismantled . | . . . . Machines Sabotaged . | . . . . Overloaded Fab Kills . | . . . . Hacking | -11 -10 -10 -9 --------- Run | Yrd Mat Min Mat Machines Accessed 5 | . 5 . . Terminals 4 | . 4 . . Fabricators . | . . . . Repair Stations . | . . . . Recycling Units 1 | . 1 . . Scanalyzers . | . . . . Garrison Access . | . . . . Total Hacks 12 | . 12 . . Successful 9 | . 9 . . Failed 3 | . 3 . . Catastrophic 1 | . 1 . . Database Lockouts . | . . . . Manual 2 | . 2 . . Terminals 11 | . 11 . . Fabricators . | . . . . Repair Stations . | . . . . Recycling Units 1 | . 1 . . Scanalyzers . | . . . . Garrison Access . | . . . . Terminal Hacks 8 | . 8 . . Record 1 | . 1 . . Prototype ID Bank 2 | . 2 . . Emergency Access Points 1 | . 1 . . Locate Traps 1 | . 1 . . Maintenance Status 1 | . 1 . . Security Status 1 | . 1 . . Assault Status 1 | . 1 . . Fabricator Hacks . | . . . . Repair Station Hacks . | . . . . Recycling Unit Hacks 1 | . 1 . . Report Inventory 1 | . 1 . . Scanalyzer . | . . . . Garrison Access Hacks . | . . . . Unauthorized Hacks . | . . . . Terminals . | . . . . Fabricators . | . . . . Repair Stations . | . . . . Recycling Units . | . . . . Scanalyzers . | . . . . Garrison Access . | . . . . Data Cores Recovered . | . . . . Used . | . . . . Hacking Detections 2 | . 2 . . Full Trace Events 1 | . 1 . . Feedback Events . | . . . . Feedback Blocked . | . . . . Robot Schematics Acquired . | . . . . Robots Built . | . . . . Authchips . | . . . . Time . | . . . . Total Robot Build Rating . | . . . . Part Schematics Acquired . | . . . . Parts Built . | . . . . Authchips . | . . . . Time . | . . . . Total Part Build Rating . | . . . . Parts Repaired . | . . . . Time . | . . . . Parts Recycled . | . . . . Recycled Matter . | . . . . Retrieved Matter . | . . . . Retrieved Components . | . . . . Parts Scanalyzed . | . . . . Part Schematics Acquired . | . . . . Parts Damaged . | . . . . Bothacking | -11 -10 -10 -9 ------------ Run | Yrd Mat Min Mat Used RIF Installer . | . . . . Robots Hacked 1 | . 1 . . Non-combat 1 | . 1 . . Combat . | . . . . Robot Hacks Applied 1 | . 1 . . parse_system 1 | . 1 . . Relay Couplers Released . | . . . . Fabnet Peak Effective % . | . . . . Robots Rewired . | . . . . Allies Hacked . | . . . . Hacks Repelled . | . . . . Allies | -11 -10 -10 -9 -------- Run | Yrd Mat Min Mat Total Allies . | . . . . Largest Group . | . . . . Highest-Rated Group . | . . . . Highest-Rated Ally . | . . . . Total Orders . | . . . . Ally Attacks . | . . . . Total Damage . | . . . . Kills . | . . . . Allies Corrupted . | . . . . Allies Melted . | . . . . Intel | -11 -10 -10 -9 ------- Run | Yrd Mat Min Mat Robot Analysis Total . | . . . . Derelict Logs Recovered 1 | . . 1 . Drone Launches . | . . . . Drone Recoveries . | . . . . Exploration | -11 -10 -10 -9 ------------- Run | Yrd Mat Min Mat Turns Passed 2515 | 57 1233 982 243 Spaces Moved 1118 | 39 609 386 84 Core 27 | 16 . 11 . Treads 841 | 23 609 209 . Legs 244 | . . 160 84 Wheels 6 | . . 6 . Hover . | . . . . Flight . | . . . . Fastest Speed 50 | 50 160 95 190 Average Speed 168 | 114 160 181 190 Slowest Speed 450 | 160 160 450 190 Overloaded Moves . | . . . . Propulsion Burnouts . | . . . . Robots Hopped . | . . . . Cave-ins Triggered . | . . . . Exploration Rate (%) 34 | 3 61 61 14 Regions Visited 3 Branch Regions 1 Pre-discovered Areas . | . . . . Known Exits Taken 2 | . 1 1 . Unknown Exits Taken 1 | 1 . . . Scrap Searched . | . . . . Spaces Dug 1 | . . 1 . Terrain Destroyed 4 | . . 4 . Melee . | . . . . Projectile 4 | . . 4 . AOE . | . . . . Terrain Rammed 13 | . . 13 . Walls Destroyed . | . . . . Machines Disabled . | . . . . Actions | -11 -10 -10 -9 --------- Run | Yrd Mat Min Mat Total 1544 | 51 829 537 127 Wait 204 | . 155 29 20 Move 1116 | 39 608 385 84 Hop . | . . . . Pick Up 26 | 6 7 12 1 Fast Attach . | . . . . Attach 22 | 6 5 10 1 Detach 2 | . 1 1 . Swap 5 | . 1 4 . Drop 7 | . 1 5 1 Fire 113 | . 24 77 12 Melee 12 | . 12 . . Ram 20 | . . 14 6 Kick 2 | . . . 2 Crush . | . . . . Escape Stasis . | . . . . Rewire . | . . . . Trap 15 | . 15 . . Miscellaneous . | . . . . Route ------- -11/Scrapyard -10/Materials (discovered 3 exits: *Mat / *Min x2) -10/Mines (discovered 2 exits: *Mat x2) -9/Materials (discovered 2 exits: [*Min] / Sto) History --------- Turn | Location | Event 6 | -11/Scrapyard | Discovered new exit (range 15) 58 | -11/Scrapyard | Entered Materials 305 | -10/Materials | Build established: Mutant 383 | -10/Materials | Discovered new exit (range 14) 658 | -10/Materials | Derelicts attacked the area 1065 | -10/Materials | Discovered new exit (range 4) 1068 | -10/Materials | Identified exit to Materials 1200 | -10/Materials | Discovered new exit (range 8) 1283 | -10/Materials | Identified exit to Mines 1291 | -10/Materials | Entered Mines 1522 | -10/Mines | Discovered exit to Materials (range 13) 1699 | -10/Mines | Core integrity fell below 50% 1737 | -10/Mines | Lost 4 parts (2n2w) 1828 | -10/Mines | Excavation squad dispatched 1828 | -10/Mines | A large section of the Mines collapsed 1963 | -10/Mines | System corruption reached 10% 1968 | -10/Mines | Core integrity fell below 20% 2071 | -10/Mines | Discovered exit to Materials (range 6) 2074 | -10/Mines | Build established: Scavenger-Mutant 2273 | -10/Mines | Entered Materials 2273 | -9/Materials | Evolved 2 slots: Utility x1, Weapon x1 2274 | -9/Materials | Identified exit to Storage 2367 | -9/Materials | Discovered new exit (range 13) 2500 | -9/Materials | Core integrity fell below 50% 2511 | -9/Materials | Core integrity fell below 20% 2516 | -9/Materials | Destroyed by G-47 Trooper with Particle Gun Last Messages --------------- 02425_ Acquired Med. Matter Pod. 02460_ G-34 Mercenary destroyed. 02478_ Sml. Laser destroyed. 02481_ Acquired 38 matter. 02483_ Kicked G-47 Trooper. 02483_ Ion Engine destroyed. 02487_ Aluminum Leg destroyed. 02488_ Kicked G-47 Trooper. 02490_ Aluminum Leg destroyed. 02490_ Critical hit (Burn: +37). 02492_ Sml. Laser destroyed. 02493_ Slammed into G-47 Trooper. 02503_ K-01 Serf collects debris. 02505_ Slammed into G-47 Trooper. 02506_ K-01 Serf collects debris. 02508_ U-05 Engineer builds a Door. 02509_ Slammed into G-47 Trooper. 02510_ K-01 Serf collects debris. 02513_ Slammed into G-47 Trooper. 02513_ K-01 Serf collects debris. Map ----- +----------------------------------------------------+ | ???????????????????????????###+######??? | | ??????????????????????? ?????# #???????? | | ??????????????????????? ?????# #?####### | | ??????????????????????? ???### ### # | | ?????????????????????## ##?# # # | | ?????????????????????# ### # # | | ?????????????????????+ + # | | ?????????????????????# ### # # | | ?????????????????????# #?# # # | | ?????????????????????# #?### # # # | | ?????????????????????# #???# # ##+#### | | ?????????????????????# #####+# #??? | | ?????????????????????# # # #??? | | ??????????????""?????# # # #??? | | ?????????????""" ????# # # #??? | | ?????????????? ???# # # #??? | | ??????????????? ???# + ! # #??? | | ???????????????? ??# # # #??? | | ????????????????? ?# # + #??? | | ???????##+#########+## # # #??? | | ?????? # # #??? | | ?????? # # #??? | | ?????? # # #??? | | ????????#+## #######%k # # #??? | | ???????????#????????## ! ####### #??? | | ???????????????????##==g @##???# #+#??? | | ???????????????????# g #???? ?????? | | ???????????????????# #???????????? | | ???????????????????# < #???????????? | | ???????????????????# #???????????? | | ???????????????????#"" ""#???????????? | | ???????????????????##" !!"##???????????? | | ????????????????????##"""##????????????? | | ?????????????????????#####?????????????? | | ???????????????????????????????????????? | | ???????????????????????????????????????? | | ???????????????????????????????????????? | | ???????????????????????????????????????? | | ???????????????????????????????????????? | | ???????????????????????????????????????? | | ???????????????????????????????????????? | | | | | | | | | | | | | | | | | | | +----------------------------------------------------+ Best States ------------- Heat Dissipation 28 Energy Generation 10 Energy Capacity 250 Matter Stores 379 Matter Capacity 400 Sight Range 16 Terrain Scan Density 10 Evasion (%) 50 Recoil Reduction 2 Item Schematics ----------------- None Robot Schematics ------------------ None Fabricated ------------ Nothing Alien Tech Used ----------------- None Achievements -------------- None Challenges ------------ None Game ------ Seed TargetingReactiveWheel Manual? 0 Play Time 00:16:10 Cumulative 30.0 hours Start 2024.09.02 @ 15:15:20 End 2024.09.02 @ 15:32:18 Sessions 1 Manual Loads 0 Difficulty Rogue Special Mode None Game No. 35 Rogue 3 Adventurer 32 Explorer 0 Win Type - Total 0 Types 0/0/0/0/0/0/0/0/0 Lore% 15 Gallery% 23 Achievement% 21 Wizard Run 0 Options --------- Layout 1 ASCII 0 Keyboard 0 Movement Numpad Keybinds 0 Fullscreen 1 Font 24/Smallcaps Map View 50x35 Zoom Use 0% Tactical HUD 1 Map Filters NONE Filters NONE Steam 1 RUN: 919419fc-e270-410f-a861-42c5737368f9